{"text_format":"1","workbook":"xlsx","n_sheets":4,"sheets":["Vansale_StockUpload","Van_Record","Routing_Record","Branches"],"not_rendered":{"charts":0,"images":2,"macros":1,"external_links":0,"defined_names":29,"comments":3,"pivot_tables":0},"unopened":[],"bounds":{"document_bytes":16777216,"sheet_cells":100000,"rows_first":2000,"rows_last":500,"rows_between":2000,"halvings":0,"cell_chars":16384,"cell_head_chars":4096},"cells_cut":0,"cells_raw":0,"read":"whole","date_system":"1900"}

{"sheet":"Vansale_StockUpload","index":0,"n_rows":5,"n_cols":10,"rows_kept":5,"cut":false,"hidden":true,"merged":[]}
["No.","Type","Warehouse","SKU","Product","Qty","Unit","RIndex","Van",{"$f":"IFERROR(IF(OR(Type=\"ADJ - ล้างของเสีย\",SUMPRODUCT(ABS(FillDataZone))>0),\"OK\",\"NO\"),\"NO\")","v":"OK"}]
[{"$f":"IF(D2=\"\",\"\",ROWS($2:2))","v":1},{"$f":"IF($H2=\"\",\"\",MID(Type,1,FIND(\" \",Type)-1))","v":"ADJ"},{"$f":"IF($I2=\"\",\"\",\"WH-\"&Van_Branch_Code&\"V\"&RIGHT($I2,2)&IF(Type=\"ADJ - ล้างของเสีย\",\"-RE\",\"-IN\"))","v":"WH-LEV01-RE"},{"$f":"IF($H2=\"\",\"\",INDEX(Van_Record!B:B,$H2))","v":"9913"},{"$f":"IF($H2=\"\",\"\",INDEX(Van_Record!C:C,$H2))","v":"01-ขนมปังหมูหยองน้ำสลัด"},{"$f":"IF(I2=\"\",\"\",IF(Type=\"ADJ - ล้างของเสีย\",0,MAX(SUMPRODUCT(FillDataZone,(Header=I2)*(GB_Product[SKU]=D2)),0)))","v":0},{"$f":"IF($H2=\"\",\"\",\"ชิ้น\")","v":"ชิ้น"},{"$f":"IF(I2=\"\",\"\",IF(LEFT(Type,3)=\"ADJ\",_xlfn.AGGREGATE(15,6,ROW(GB_Product[Product])/((GB_Product[Product]<>\"\")),COUNTIF(I$2:I2,I2)),_xlfn.AGGREGATE(15,6,ROW(GB_Product[Product])/(INDEX(GB_Product[#Data],,MATCH($I2,GB_Product[#Headers]))>0),COUNTIF(I$2:I2,I2))))","v":13},{"$f":"IF(REC_Chk=\"NO\",\"\",IF(Type=\"GR - รับเข้า\",GR_Cal,ADJ_Cal))","v":"Van01"},{"$f":"IF(Type=\"GR - รับเข้า\",COUNTA(FillDataZone)+2,SUMPRODUCT((GB_Product[SKU]<>\"\")*COLUMNS(FillDataZone))+2)","v":242}]
[{"$f":"IF(D3=\"\",\"\",ROWS($2:3))","v":2},{"$f":"IF($H3=\"\",\"\",MID(Type,1,FIND(\" \",Type)-1))","v":"ADJ"},{"$f":"IF($I3=\"\",\"\",\"WH-\"&Van_Branch_Code&\"V\"&RIGHT($I3,2)&IF(Type=\"ADJ - ล้างของเสีย\",\"-RE\",\"-IN\"))","v":"WH-LEV01-RE"},{"$f":"IF($H3=\"\",\"\",INDEX(Van_Record!B:B,$H3))","v":"99141"},{"$f":"IF($H3=\"\",\"\",INDEX(Van_Record!C:C,$H3))","v":"02-ขนมปังหมูหยองน้ำพริกเผา"},{"$f":"IF(I3=\"\",\"\",IF(Type=\"ADJ - ล้างของเสีย\",0,MAX(SUMPRODUCT(FillDataZone,(Header=I3)*(GB_Product[SKU]=D3)),0)))","v":0},{"$f":"IF($H3=\"\",\"\",\"ชิ้น\")","v":"ชิ้น"},{"$f":"IF(I3=\"\",\"\",IF(LEFT(Type,3)=\"ADJ\",_xlfn.AGGREGATE(15,6,ROW(GB_Product[Product])/((GB_Product[Product]<>\"\")),COUNTIF(I$2:I3,I3)),_xlfn.AGGREGATE(15,6,ROW(GB_Product[Product])/(INDEX(GB_Product[#Data],,MATCH($I3,GB_Product[#Headers]))>0),COUNTIF(I$2:I3,I3))))","v":14},{"$f":"IF(REC_Chk=\"NO\",\"\",IF(Type=\"GR - รับเข้า\",GR_Cal,ADJ_Cal))","v":"Van01"}]
[{"$f":"IF(D4=\"\",\"\",ROWS($2:4))","v":3},{"$f":"IF($H4=\"\",\"\",MID(Type,1,FIND(\" \",Type)-1))","v":"ADJ"},{"$f":"IF($I4=\"\",\"\",\"WH-\"&Van_Branch_Code&\"V\"&RIGHT($I4,2)&IF(Type=\"ADJ - ล้างของเสีย\",\"-RE\",\"-IN\"))","v":"WH-LEV01-RE"},{"$f":"IF($H4=\"\",\"\",INDEX(Van_Record!B:B,$H4))","v":"99126"},{"$f":"IF($H4=\"\",\"\",INDEX(Van_Record!C:C,$H4))","v":"03-ขนมปังไก่หยองน้ำสลัด"},{"$f":"IF(I4=\"\",\"\",IF(Type=\"ADJ - ล้างของเสีย\",0,MAX(SUMPRODUCT(FillDataZone,(Header=I4)*(GB_Product[SKU]=D4)),0)))","v":0},"ชิ้น",{"$f":"IF(I4=\"\",\"\",IF(LEFT(Type,3)=\"ADJ\",_xlfn.AGGREGATE(15,6,ROW(GB_Product[Product])/((GB_Product[Product]<>\"\")),COUNTIF(I$2:I4,I4)),_xlfn.AGGREGATE(15,6,ROW(GB_Product[Product])/(INDEX(GB_Product[#Data],,MATCH($I4,GB_Product[#Headers]))>0),COUNTIF(I$2:I4,I4))))","v":15},{"$f":"IF(REC_Chk=\"NO\",\"\",IF(Type=\"GR - รับเข้า\",GR_Cal,ADJ_Cal))","v":"Van01"}]
[{"$f":"IF(D5=\"\",\"\",ROWS($2:5))","v":4},{"$f":"IF($H5=\"\",\"\",MID(Type,1,FIND(\" \",Type)-1))","v":"ADJ"},{"$f":"IF($I5=\"\",\"\",\"WH-\"&Van_Branch_Code&\"V\"&RIGHT($I5,2)&IF(Type=\"ADJ - ล้างของเสีย\",\"-RE\",\"-IN\"))","v":"WH-LEV01-RE"},{"$f":"IF($H5=\"\",\"\",INDEX(Van_Record!B:B,$H5))","v":"99124"},{"$f":"IF($H5=\"\",\"\",INDEX(Van_Record!C:C,$H5))","v":"04-ขนมปังไส้ครีมสลัด"},{"$f":"IF(I5=\"\",\"\",IF(Type=\"ADJ - ล้างของเสีย\",0,MAX(SUMPRODUCT(FillDataZone,(Header=I5)*(GB_Product[SKU]=D5)),0)))","v":0},"ชิ้น",{"$f":"IF(I5=\"\",\"\",IF(LEFT(Type,3)=\"ADJ\",_xlfn.AGGREGATE(15,6,ROW(GB_Product[Product])/((GB_Product[Product]<>\"\")),COUNTIF(I$2:I5,I5)),_xlfn.AGGREGATE(15,6,ROW(GB_Product[Product])/(INDEX(GB_Product[#Data],,MATCH($I5,GB_Product[#Headers]))>0),COUNTIF(I$2:I5,I5))))","v":16},{"$f":"IF(REC_Chk=\"NO\",\"\",IF(Type=\"GR - รับเข้า\",GR_Cal,ADJ_Cal))","v":"Van01"}]

{"sheet":"Van_Record","index":1,"n_rows":42,"n_cols":20,"rows_kept":42,"cut":false,"hidden":false,"merged":[[1,2,1,9]]}
[]
[null,null,">>> รายการนำเข้าสินค้าขึ้นหน่วยรถขายประจำวัน",null,null,null,null,null,null,null,{"$f":"INDEX(GB_Branches[Code],MATCH(Van_Branch_Name,GB_Branches[Thai_Name],0))","v":"LE"}]
[]
[null,"ExportName :",{"$f":"IF(Type=\"ADJ - ล้างของเสีย\",\"RESTK_\",MID(Type,1,FIND(\" \",Type)-1)&\"-IN_\")&Van_Branch_Code&\"_\"&TEXT(Van_SLDate,\"[$-41E]yyyymmdd\")","v":"RESTK_LE_20231118"}]
[null,"วันที่ :","2023-11-18"]
[]
[null,"สาขา :","เลย"]
[]
[null,"Type :","ADJ - ล้างของเสีย"]
[null,"https://docs.google.com/spreadsheets/d/1I3ev80bppMdCSDw2pa7WeDeY4CGlOrJw25FuykTCmRo/export?format=csv&gid=885289288"]
[]
[null,"SKU","Product","FRY-IN","Van01","Van02","Van03","Van04","Van05","Van06","Van07","Van08","Van09",null,null,null,"Van13","Van14","Van15","Van16"]
[null,"9913","01-ขนมปังหมูหยองน้ำสลัด"]
[null,"99141","02-ขนมปังหมูหยองน้ำพริกเผา"]
[null,"99126","03-ขนมปังไก่หยองน้ำสลัด"]
[null,"99124","04-ขนมปังไส้ครีมสลัด"]
[null,"99142","05-ขนมปังเนยสด"]
[null,"9903","06-ขนมปังไส้สังขยาเล็ก"]
[null,"9902","07-ขนมปังไส้เผือก"]
[null,"9906","08-ขนมปังไส้ถั่วแดง"]
[null,"99171","09-ขนมปังไส้ถั่วดำ"]
[null,"99161","10-ขนมปังไส้มันม่วง"]
[null,"9908","11-เค้กกล้วยหอม"]
[null,"9911","12-เค้กบัตเตอร์"]
[null,"9922","13-ขนมปังโรลถั่วแดง"]
[null,"9901","14-ขนมปังไส้สังขยาใหญ่"]
[null,"99148","15-ขนมปังชนิดแผ่น(480กรัม)"]
[null,"9957","16-โมจิไส้ถั่ว"]
[null,"99167","17-โมจิไส้เผือก"]
[null,"99166","18-โมจิไส้ถั่วไข่เค็ม"]
[null,"9912","19-ขนมปังพิซซ่า"]
[null,"99158","20-ขนมปังพิซซ่าปูอัดแฮม"]
[null,"9953","21-ขนมปังไส้กรอก"]
[null,"9909","22-ขนมก้านบัว"]
[null,"99176","23-ขนมปังกรอบเนยน้ำตาล"]
[null,"99177","24-พายสับปะรด"]
[null,"99134","25-ปังกรอบเนยสด"]
[null,"99135","26-ปังกรอบกระเทียม"]
[null,"99178","27-พายไส้มะพร้าว"]
[null,"99179","28-ฟรุ๊ตพายสับปะรด"]
[null,"99180","29-ฟรุ๊ตพายสตรอว์เบอร์รี"]
[null,"99181","30-ขนมปังโรลมันเทศ"]

{"sheet":"Routing_Record","index":2,"n_rows":41,"n_cols":11,"rows_kept":41,"cut":false,"hidden":true,"merged":[[1,2,1,9]]}
[]
[null,null,">>> การจัดแผนวิ่งประจำวัน (Routing Plan)",null,null,null,null,null,null,null,{"$f":"INDEX(GB_Branches[Code],MATCH(Van_Branch_Name,GB_Branches[Thai_Name],0))","v":"LE"}]
[]
[null,"ExportName :",{"$f":"\"Routing_\"&Route_Branch_Code&\"_\"&TEXT(Route_SLDate,\"[$-41E]yyyymmdd\")","v":"Routing_LE_20191010"}]
[null,"วันที่ :","2019-10-10"]
[]
[null,"สาขา :","สกลนคร",null,"R1","R2","R3","R4","R5","R6"]
[]
[null,"Code","Name","Route","Mon","Tue","Wed","Thu","Fri","Sat","Memo"]
[null,"1181C00676","7-Eleven - สาขา ศรีพูนเมือง สกลนคร ",{"$f":"INDEX(GB_Branches[Code],MATCH(MID(Cust_Route[[#This Row],[Code]],2,2),GB_Branches[ID],0))&TEXT(MID(Cust_Route[[#This Row],[Code]],4,1),\"00\")","v":"SN01"},1,null,1,null,1]
[null,"1181C00928","7-Eleven - สาขา รพ.สกลนคร ",{"$f":"INDEX(GB_Branches[Code],MATCH(MID(Cust_Route[[#This Row],[Code]],2,2),GB_Branches[ID],0))&TEXT(MID(Cust_Route[[#This Row],[Code]],4,1),\"00\")","v":"SN01"},null,1]
[null,"1181C01769","7-Eleven - สาขา หน้าศูนย์ราชการสกลนคร ",{"$f":"INDEX(GB_Branches[Code],MATCH(MID(Cust_Route[[#This Row],[Code]],2,2),GB_Branches[ID],0))&TEXT(MID(Cust_Route[[#This Row],[Code]],4,1),\"00\")","v":"SN01"}]
[null,"1181C02835","7-Eleven - สาขา ปตท.สกล ",{"$f":"INDEX(GB_Branches[Code],MATCH(MID(Cust_Route[[#This Row],[Code]],2,2),GB_Branches[ID],0))&TEXT(MID(Cust_Route[[#This Row],[Code]],4,1),\"00\")","v":"SN01"}]
[null,"1181C02925","7-Eleven - สาขา Booth ราชภัฏสกลนคร ",{"$f":"INDEX(GB_Branches[Code],MATCH(MID(Cust_Route[[#This Row],[Code]],2,2),GB_Branches[ID],0))&TEXT(MID(Cust_Route[[#This Row],[Code]],4,1),\"00\")","v":"SN01"}]
[null,"1181C02947","7-Eleven - สาขา ปตท.ศรีวิชา สกลนคร ",{"$f":"INDEX(GB_Branches[Code],MATCH(MID(Cust_Route[[#This Row],[Code]],2,2),GB_Branches[ID],0))&TEXT(MID(Cust_Route[[#This Row],[Code]],4,1),\"00\")","v":"SN01"}]
[null,"1181C03127","7-Eleven - สาขา ตลาดเทศบาลสกลนคร ",{"$f":"INDEX(GB_Branches[Code],MATCH(MID(Cust_Route[[#This Row],[Code]],2,2),GB_Branches[ID],0))&TEXT(MID(Cust_Route[[#This Row],[Code]],4,1),\"00\")","v":"SN01"}]
[null,"1181C03289","7-Eleven - สาขา รุ่งพัฒนา สกลนคร ",{"$f":"INDEX(GB_Branches[Code],MATCH(MID(Cust_Route[[#This Row],[Code]],2,2),GB_Branches[ID],0))&TEXT(MID(Cust_Route[[#This Row],[Code]],4,1),\"00\")","v":"SN01"}]
[null,"1181C05241","7-Eleven -ปตท.ศูนย์ราชการสกลนคร",{"$f":"INDEX(GB_Branches[Code],MATCH(MID(Cust_Route[[#This Row],[Code]],2,2),GB_Branches[ID],0))&TEXT(MID(Cust_Route[[#This Row],[Code]],4,1),\"00\")","v":"SN01"}]
[null,"1181C07116","7-Eleven - สาขา ปตท.สกลนิตโย ",{"$f":"INDEX(GB_Branches[Code],MATCH(MID(Cust_Route[[#This Row],[Code]],2,2),GB_Branches[ID],0))&TEXT(MID(Cust_Route[[#This Row],[Code]],4,1),\"00\")","v":"SN01"}]
[null,"1181C09017","7-Eleven - สาขา เต่างอย ",{"$f":"INDEX(GB_Branches[Code],MATCH(MID(Cust_Route[[#This Row],[Code]],2,2),GB_Branches[ID],0))&TEXT(MID(Cust_Route[[#This Row],[Code]],4,1),\"00\")","v":"SN01"}]
[null,"1181C10153","7-Eleven - ปตท.บายพาสสกลนคร",{"$f":"INDEX(GB_Branches[Code],MATCH(MID(Cust_Route[[#This Row],[Code]],2,2),GB_Branches[ID],0))&TEXT(MID(Cust_Route[[#This Row],[Code]],4,1),\"00\")","v":"SN01"}]
[null,"1181C10789","7-Eleven - สาขา ตลาดรุ่งพัฒนา ",{"$f":"INDEX(GB_Branches[Code],MATCH(MID(Cust_Route[[#This Row],[Code]],2,2),GB_Branches[ID],0))&TEXT(MID(Cust_Route[[#This Row],[Code]],4,1),\"00\")","v":"SN01"}]
[null,"1181C13119","7-Eleven - ข้าง รพ.สกลนคร",{"$f":"INDEX(GB_Branches[Code],MATCH(MID(Cust_Route[[#This Row],[Code]],2,2),GB_Branches[ID],0))&TEXT(MID(Cust_Route[[#This Row],[Code]],4,1),\"00\")","v":"SN01"}]
[null,"1181C14813","7-Eleven -สาขา PTTOR เต่างอย",{"$f":"INDEX(GB_Branches[Code],MATCH(MID(Cust_Route[[#This Row],[Code]],2,2),GB_Branches[ID],0))&TEXT(MID(Cust_Route[[#This Row],[Code]],4,1),\"00\")","v":"SN01"}]
[null,"1181M21773","MBC - ตลาดเทศบาลสกลนคร",{"$f":"INDEX(GB_Branches[Code],MATCH(MID(Cust_Route[[#This Row],[Code]],2,2),GB_Branches[ID],0))&TEXT(MID(Cust_Route[[#This Row],[Code]],4,1),\"00\")","v":"SN01"}]
[null,"1181M31061","MBC - คาลเท็กซ์ บายพาส 2 สกลนคร",{"$f":"INDEX(GB_Branches[Code],MATCH(MID(Cust_Route[[#This Row],[Code]],2,2),GB_Branches[ID],0))&TEXT(MID(Cust_Route[[#This Row],[Code]],4,1),\"00\")","v":"SN01"}]
[null,"1181M31062","MBC - คาลเท็กซ์ โพนยางคำ สกลนคร",{"$f":"INDEX(GB_Branches[Code],MATCH(MID(Cust_Route[[#This Row],[Code]],2,2),GB_Branches[ID],0))&TEXT(MID(Cust_Route[[#This Row],[Code]],4,1),\"00\")","v":"SN01"}]
[null,"1181M31065","MBC - คาลเท็กซ์ บายพาส 1 สกลนคร",{"$f":"INDEX(GB_Branches[Code],MATCH(MID(Cust_Route[[#This Row],[Code]],2,2),GB_Branches[ID],0))&TEXT(MID(Cust_Route[[#This Row],[Code]],4,1),\"00\")","v":"SN01"}]
[null,"1181M31066","MBC - คาลเท็กซ์ ห้วยทราย",{"$f":"INDEX(GB_Branches[Code],MATCH(MID(Cust_Route[[#This Row],[Code]],2,2),GB_Branches[ID],0))&TEXT(MID(Cust_Route[[#This Row],[Code]],4,1),\"00\")","v":"SN01"}]
[null,"2181Z10001","ร้าน ซุ้มน้ำวิทยาลัยเทคนิคสกลนคร",{"$f":"INDEX(GB_Branches[Code],MATCH(MID(Cust_Route[[#This Row],[Code]],2,2),GB_Branches[ID],0))&TEXT(MID(Cust_Route[[#This Row],[Code]],4,1),\"00\")","v":"SN01"}]
[null,"2181Z10002","มินิมาร์ทสารพัดช่าง",{"$f":"INDEX(GB_Branches[Code],MATCH(MID(Cust_Route[[#This Row],[Code]],2,2),GB_Branches[ID],0))&TEXT(MID(Cust_Route[[#This Row],[Code]],4,1),\"00\")","v":"SN01"}]
[null,"2181Z50001","หจก ภาณุวัฒน์ปิโตเลียม ( สาขาศรีวิชา )",{"$f":"INDEX(GB_Branches[Code],MATCH(MID(Cust_Route[[#This Row],[Code]],2,2),GB_Branches[ID],0))&TEXT(MID(Cust_Route[[#This Row],[Code]],4,1),\"00\")","v":"SN01"}]
[null,"2181ZA0009","ร้าน เสมียรโรงเรียนธาตุนารายณ์",{"$f":"INDEX(GB_Branches[Code],MATCH(MID(Cust_Route[[#This Row],[Code]],2,2),GB_Branches[ID],0))&TEXT(MID(Cust_Route[[#This Row],[Code]],4,1),\"00\")","v":"SN01"}]
[null,"1181L02607","Lotus-02607 ธาตุเชิงชุม",{"$f":"INDEX(GB_Branches[Code],MATCH(MID(Cust_Route[[#This Row],[Code]],2,2),GB_Branches[ID],0))&TEXT(MID(Cust_Route[[#This Row],[Code]],4,1),\"00\")","v":"SN01"}]
[null,"3181Z30002","ร้าน โรงพยาบาลสกลนคร2",{"$f":"INDEX(GB_Branches[Code],MATCH(MID(Cust_Route[[#This Row],[Code]],2,2),GB_Branches[ID],0))&TEXT(MID(Cust_Route[[#This Row],[Code]],4,1),\"00\")","v":"SN01"}]
[null,"3181Z30001","ร้าน โรงพยาบาลสกลนคร1",{"$f":"INDEX(GB_Branches[Code],MATCH(MID(Cust_Route[[#This Row],[Code]],2,2),GB_Branches[ID],0))&TEXT(MID(Cust_Route[[#This Row],[Code]],4,1),\"00\")","v":"SN01"}]
[null,"2181ZA0096","อุ้มมินิมาร์ค",{"$f":"INDEX(GB_Branches[Code],MATCH(MID(Cust_Route[[#This Row],[Code]],2,2),GB_Branches[ID],0))&TEXT(MID(Cust_Route[[#This Row],[Code]],4,1),\"00\")","v":"SN01"}]
[null,"2181ZA0097","โอ๊ต​ อิง",{"$f":"INDEX(GB_Branches[Code],MATCH(MID(Cust_Route[[#This Row],[Code]],2,2),GB_Branches[ID],0))&TEXT(MID(Cust_Route[[#This Row],[Code]],4,1),\"00\")","v":"SN01"}]
[null,"2181ZA0098","ฟ้าใส",{"$f":"INDEX(GB_Branches[Code],MATCH(MID(Cust_Route[[#This Row],[Code]],2,2),GB_Branches[ID],0))&TEXT(MID(Cust_Route[[#This Row],[Code]],4,1),\"00\")","v":"SN01"}]
[null,"2181ZA0099","ร้าน​ กองทุนหมู่บ้านหนองปลาน้อย",{"$f":"INDEX(GB_Branches[Code],MATCH(MID(Cust_Route[[#This Row],[Code]],2,2),GB_Branches[ID],0))&TEXT(MID(Cust_Route[[#This Row],[Code]],4,1),\"00\")","v":"SN01"}]
[null,"2181ZA0100","อำนวยพาณิช",{"$f":"INDEX(GB_Branches[Code],MATCH(MID(Cust_Route[[#This Row],[Code]],2,2),GB_Branches[ID],0))&TEXT(MID(Cust_Route[[#This Row],[Code]],4,1),\"00\")","v":"SN01"}]

{"sheet":"Branches","index":3,"n_rows":34,"n_cols":13,"rows_kept":34,"cut":false,"hidden":true,"merged":[[2,1,2,4]]}
[]
[null,"Branches","https://docs.google.com/spreadsheets/d/1I3ev80bppMdCSDw2pa7WeDeY4CGlOrJw25FuykTCmRo/export?format=csv&gid=0"]
[null,":: GoldBread Branches ::  (Auto Update)",null,null,null,null,null,null,null,{"$f":"INDEX(GB_Branches[Code],MATCH(Van_Branch_Name,GB_Branches[Thai_Name],0))","v":"LE"},{"$f":"INDEX(GB_Branches[Route],MATCH($J$3,GB_Branches[Code],0))","v":8}]
[]
[null,"ID","Code","Thai_Name","Address","Manager","Route","GoogleForm",null,"Vans_List",null,null,"Calendar_List"]
[null,"03","KB","กบินทร์บุรี","262-263 ต.เมืองเก่า อ.กบินทร์บุรี จ.ปราจีนบุรี 25240","นายเจร ดวงอุประ",9,"https://forms.gle/n6EdPJesFkVY6HAJ6",null,{"$f":"IF(ROWS($6:6)>$K$3,\"\",RIGHT($J$3,2)&TEXT(ROWS($6:6),\"00\"))","v":"LE01"},null,null,{"$f":"DATE(YEAR(TODAY()),MONTH(TODAY()),ROWS($6:6)+DAY(TODAY())-8)","v":"2023-11-13"}]
[null,"04","KR","โคราช","1216 ถ.มหาวิทยาลัย1 ต.หนองจะบก อ.เมือง จ.นครราชสีมา 30000","นายศักดิ์ศิริมงคล พลมุข",12,"https://forms.gle/denrtnPPWxx5n3u77",null,{"$f":"IF(ROWS($6:7)>$K$3,\"\",RIGHT($J$3,2)&TEXT(ROWS($6:7),\"00\"))","v":"LE02"},null,null,{"$f":"DATE(YEAR(TODAY()),MONTH(TODAY()),ROWS($6:7)+DAY(TODAY())-8)","v":"2023-11-14"}]
[null,"05","NP","นครปฐม","156/3 ม.6 ต.คลองใหม่ อ.สามพราน จ.นครปฐม 7311","นายสิรภพ บุญยัง",11,"https://forms.gle/SSDHeag84rztM3z98",null,{"$f":"IF(ROWS($6:8)>$K$3,\"\",RIGHT($J$3,2)&TEXT(ROWS($6:8),\"00\"))","v":"LE03"},null,null,{"$f":"DATE(YEAR(TODAY()),MONTH(TODAY()),ROWS($6:8)+DAY(TODAY())-8)","v":"2023-11-15"}]
[null,"06","KK","ขอนแก่น","670/94 มบ.พัฒนาสแควร์ ซ.กลางเมือง ถ.กลางเมือง ต.ในเมือง อ.เมือง จ.ขอนแก่น 40000","นายอรรคพล มุ่งรวยกลาง",10,"https://forms.gle/C2Z1QkEHQggJj5tR9",null,{"$f":"IF(ROWS($6:9)>$K$3,\"\",RIGHT($J$3,2)&TEXT(ROWS($6:9),\"00\"))","v":"LE04"},null,null,{"$f":"DATE(YEAR(TODAY()),MONTH(TODAY()),ROWS($6:9)+DAY(TODAY())-8)","v":"2023-11-16"}]
[null,"07","AY","อยุธยา","27/16-17 ม.2 ต.ธนู อ.อุทัย จ.พระนครศรีอยุธยา 13000","นายวรชาติ จันทร์ช่วง",10,"https://forms.gle/7HMo1kXU3Tvz6Cuu6",null,{"$f":"IF(ROWS($6:10)>$K$3,\"\",RIGHT($J$3,2)&TEXT(ROWS($6:10),\"00\"))","v":"LE05"},null,null,{"$f":"DATE(YEAR(TODAY()),MONTH(TODAY()),ROWS($6:10)+DAY(TODAY())-8)","v":"2023-11-17"}]
[null,"08","BK","กรุงเทพฯ","2/11-12 ถ.รามคำแหง แขวงมีนบุรี เขตมีนบุรี กรุงเทพฯ 10510","นายเกียรติศักดิ์ เมืองทรัพย์",9,"https://forms.gle/zExPSYF36REGMQFV8",null,{"$f":"IF(ROWS($6:11)>$K$3,\"\",RIGHT($J$3,2)&TEXT(ROWS($6:11),\"00\"))","v":"LE06"},null,null,{"$f":"DATE(YEAR(TODAY()),MONTH(TODAY()),ROWS($6:11)+DAY(TODAY())-8)","v":"2023-11-18"}]
[null,"09","RY","ระยอง","115/1 ม.8 ต.ชากบก อ.บ้านค่าย จ.ระยอง 21120","นายสุชาติ ศรศักดา",11,"https://forms.gle/HyV6xzTucooGhTYh8",null,{"$f":"IF(ROWS($6:12)>$K$3,\"\",RIGHT($J$3,2)&TEXT(ROWS($6:12),\"00\"))","v":"LE07"},null,null,{"$f":"DATE(YEAR(TODAY()),MONTH(TODAY()),ROWS($6:12)+DAY(TODAY())-8)","v":"2023-11-19"}]
[null,"10","SK","สมุทรปราการ","155/6 ม.1 ต.บางพลีน้อย อ.บางบ่อ จ.สมุทรปราการ 10560","นายภูริวัจน์ จันทร์กลับ",8,"https://forms.gle/PKLaknUgDrEtF9rd8",null,{"$f":"IF(ROWS($6:13)>$K$3,\"\",RIGHT($J$3,2)&TEXT(ROWS($6:13),\"00\"))","v":"LE08"},null,null,{"$f":"DATE(YEAR(TODAY()),MONTH(TODAY()),ROWS($6:13)+DAY(TODAY())-8)","v":"2023-11-20"}]
[null,"12","PY","พัทยา","167/7 ม.8 ต.หนองปลาไหล อ.บางละมุง จ.ชลบุรี 20150","นายฤทธิชัย   ยอดกุล",8,"https://forms.gle/LVvhXLEveYhpF6MZ6",null,{"$f":"IF(ROWS($6:14)>$K$3,\"\",RIGHT($J$3,2)&TEXT(ROWS($6:14),\"00\"))","v":""},null,null,{"$f":"DATE(YEAR(TODAY()),MONTH(TODAY()),ROWS($6:14)+DAY(TODAY())-8)","v":"2023-11-21"}]
[null,"13","SR","สุรินทร์","606 ม.19 ต.นอกเมือง อ.เมือง จ.สุรินทร์ 32000","นายวิชิต  ผดุงสุข",7,"https://forms.gle/BdMrBRDzCxvvPrPXA",null,{"$f":"IF(ROWS($6:15)>$K$3,\"\",RIGHT($J$3,2)&TEXT(ROWS($6:15),\"00\"))","v":""},null,null,{"$f":"DATE(YEAR(TODAY()),MONTH(TODAY()),ROWS($6:15)+DAY(TODAY())-8)","v":"2023-11-22"}]
[null,"14","CB","จันทบุรี","90/92-93 ม.2 ต.ท่าช้าง อ.เมือง จ.จันทบุรี 22000","นายพิพัฒน์ จันทร์ทอง",8,"https://forms.gle/kP7wmoaMufR8RTRdA",null,{"$f":"IF(ROWS($6:16)>$K$3,\"\",RIGHT($J$3,2)&TEXT(ROWS($6:16),\"00\"))","v":""},null,null,{"$f":"DATE(YEAR(TODAY()),MONTH(TODAY()),ROWS($6:16)+DAY(TODAY())-8)","v":"2023-11-23"}]
[null,"15","UB","อุบลราชธานี","144 ม.8 ต.แสนสุข อ.วารินชำราบ จ.อุบลฯ 34190","นายศุภกร  ไตรสุทธิ",10,"https://forms.gle/Si89qhTTbayNh3Bv5",null,{"$f":"IF(ROWS($6:17)>$K$3,\"\",RIGHT($J$3,2)&TEXT(ROWS($6:17),\"00\"))","v":""},null,null,{"$f":"DATE(YEAR(TODAY()),MONTH(TODAY()),ROWS($6:17)+DAY(TODAY())-8)","v":"2023-11-24"}]
[null,"16","KL","คลองหลวง","220 ซอย รังสิต-นครนายก 37 ต.ประชาธิปัตย์ อ.ธัญบุรี จ.ปทุมธานี 12130","นายสุกัน ลำประเสริฐ",6,"https://forms.gle/cECV1pjqkZANj35WA",null,{"$f":"IF(ROWS($6:18)>$K$3,\"\",RIGHT($J$3,2)&TEXT(ROWS($6:18),\"00\"))","v":""},null,null,{"$f":"DATE(YEAR(TODAY()),MONTH(TODAY()),ROWS($6:18)+DAY(TODAY())-8)","v":"2023-11-25"}]
[null,"17","LA","ร้อยเอ็ด","141/6-7 ถ.ปัทมานนท์ ต.ในเมือง อ.เมือง จ.ร้อยเอ็ด 45000","นายสุพรรณ ทวีสาร",14,"https://forms.gle/hDH3HunBC7vyE5iy7",null,{"$f":"IF(ROWS($6:19)>$K$3,\"\",RIGHT($J$3,2)&TEXT(ROWS($6:19),\"00\"))","v":""},null,null,{"$f":"DATE(YEAR(TODAY()),MONTH(TODAY()),ROWS($6:19)+DAY(TODAY())-8)","v":"2023-11-26"}]
[null,"18","SN","สกลนคร","191/1-2 ถ.สกลนคร-นาแก ต.ดงมะไฟ อ.เมือง จ.สกลนคร 47000","นายจีรศักดิ์  สาระจันทร์",10,"https://forms.gle/H9UKSQtc9iFU4Wf49",null,{"$f":"IF(ROWS($6:20)>$K$3,\"\",RIGHT($J$3,2)&TEXT(ROWS($6:20),\"00\"))","v":""},null,null,{"$f":"DATE(YEAR(TODAY()),MONTH(TODAY()),ROWS($6:20)+DAY(TODAY())-8)","v":"2023-11-27"}]
[null,"19","UD","อุดรธานี","9/8 ถ.รอบเมือง ต.หมากแข้ง อ.เมือง จ.อุดรธานี 41000","นายมนธิมา  ผาจวง",12,"https://forms.gle/2uf1RzpeF6b9NhcU9",null,{"$f":"IF(ROWS($6:21)>$K$3,\"\",RIGHT($J$3,2)&TEXT(ROWS($6:21),\"00\"))","v":""},null,null,{"$f":"DATE(YEAR(TODAY()),MONTH(TODAY()),ROWS($6:21)+DAY(TODAY())-8)","v":"2023-11-28"}]
[null,"20","PC","ปากช่อง","34 , 36 ถ.ธนะรัชต์ ต.ปากช่อง อ.ปากช่อง จ.นครราชสีมา 30130","นายภาคิน สุขมาก",8,"https://forms.gle/c1FmVZjyuiVv6YTDA",null,{"$f":"IF(ROWS($6:22)>$K$3,\"\",RIGHT($J$3,2)&TEXT(ROWS($6:22),\"00\"))","v":""},null,null,{"$f":"DATE(YEAR(TODAY()),MONTH(TODAY()),ROWS($6:22)+DAY(TODAY())-8)","v":"2023-11-29"}]
[null,"21","BR","บุรีรัมย์","302/53-54 ต.เสม็ด อ.เมืองบุรีรัมย์ จ.บุรีรัมย์ 31000","นายสุริยา กุลมอญ",9,"https://forms.gle/u7VpQxQo3Yu4ENn1A",null,{"$f":"IF(ROWS($6:23)>$K$3,\"\",RIGHT($J$3,2)&TEXT(ROWS($6:23),\"00\"))","v":""},null,null,{"$f":"DATE(YEAR(TODAY()),MONTH(TODAY()),ROWS($6:23)+DAY(TODAY())-8)","v":"2023-11-30"}]
[null,"22","LB","ลพบุรี","เลขที่ 144/4 หมู่ 4 ต.ท่าวุ้ง อ.ท่าวุ้ง จ.ลพบุรี 15150","นายกฤษณะ  สายพิมพา",8,"https://forms.gle/mg32u83JRJ7CWhgX7",null,{"$f":"IF(ROWS($6:24)>$K$3,\"\",RIGHT($J$3,2)&TEXT(ROWS($6:24),\"00\"))","v":""}]
[null,"23","NS","นครสวรรค์","117 ถ.ถนนพรหมนิมิต ต.วัดไทร อ.เมือง จ.นครสวรรค์ 60000","นายคเชนทร์  คงเพชรศักดิ์",9,"https://forms.gle/VBATNYEDgnWNq9bR9",null,{"$f":"IF(ROWS($6:25)>$K$3,\"\",RIGHT($J$3,2)&TEXT(ROWS($6:25),\"00\"))","v":""}]
[null,"24","CY","ชัยภูมิ","144/15-16 ถนนชัยภูมิ-สีคิ้ว หนองนาแซง อำเภอเมือง จ.ชัยภูมิ","นายศุภชัย  ศรีทองเขียว",8,"https://forms.gle/V72X93NPaWhYmJNV9",null,{"$f":"IF(ROWS($6:26)>$K$3,\"\",RIGHT($J$3,2)&TEXT(ROWS($6:26),\"00\"))","v":""}]
[null,"25","RB","ราษฎร์บูรณะ","6 ซอยราษฎร์บูรณะ 4 แขวงบางปะกอก เขตราษฎร์บูรณะ กรุงเทพมหานคร 10140","นายสุรกิจ บุญรัตน์",7,"https://forms.gle/pAqtBXviptTttMEZ6",null,{"$f":"IF(ROWS($6:27)>$K$3,\"\",RIGHT($J$3,2)&TEXT(ROWS($6:27),\"00\"))","v":""}]
[null,"26","LE","เลย","340 ม.10 ต.วังสะพุง อ.วังสะพุง จ.เลย 42130","นางสาวเยาวลักษณ์ มหามาตร์",8,"https://forms.gle/AFjNZnXhQYpfVbkx5",null,{"$f":"IF(ROWS($6:28)>$K$3,\"\",RIGHT($J$3,2)&TEXT(ROWS($6:28),\"00\"))","v":""}]
[null,"27","PL","พิษณุโลก","บ้านเลขที 8888/94 ม.7 ต.สมอแข อ.เมือง จ.พิษณุโลก 65000","นายวีรเมธ ธนภูมิแก้ว",10,"https://forms.gle/HGWB7kVB6BU6A62H9",null,{"$f":"IF(ROWS($6:29)>$K$3,\"\",RIGHT($J$3,2)&TEXT(ROWS($6:29),\"00\"))","v":""}]
[null,"28","PN","เพชรบูรณ์","164 หมู่ 10 ต.ชอนไพร อ.เมืองเพชรบูรณ์ จ.เพชรบูรณ์ 67000","นายบัญชา พิมพา",6,"https://forms.gle/jsgM8sFR5BK8v9EG6",null,{"$f":"IF(ROWS($6:30)>$K$3,\"\",RIGHT($J$3,2)&TEXT(ROWS($6:30),\"00\"))","v":""}]
[null,"29","SG","ศรีสะเกษ","294 ต.หนองครก อ.เมือง จ.ศรีสะเกษ 33000","นายบริพัฒน์ สมบุญเปล่ง",8,"https://forms.gle/KGwMMkBVk9CjRqB17",null,{"$f":"IF(ROWS($6:31)>$K$3,\"\",RIGHT($J$3,2)&TEXT(ROWS($6:31),\"00\"))","v":""}]
[null,"30","BT","บางบัวทอง","200/1 ม.3 ต.บางรักพัฒนา อ.บางบัวทอง จ.นนทบุรี 11110","นายสายันต์  กล่ำจันทร์",6,"https://forms.gle/QPQ1ADP3rrWsfoFe7"]
[null,"31","KS","กาฬสินธุ์","429/3 หมู่ 4 ต.สมเด็จ อ.สมเด็จ จ.กาฬสินธุ์ 46150","นายจักรพงศ์ ปรีเลี่ยม",7,"https://forms.gle/voJ2qKQssa4NSwc96"]
[null,"32","YT","ยโสธร","254 ถ.วารีราชเดช ต.น้ำคำใหญ่ อ.เมือง จ.ยโสธร 35000","นายจำลอง ก้อนคำบา",7,"https://forms.gle/ScVYwBqLfwuYSzWUA"]